{"text_format":"1","workbook":"xlsx","n_sheets":2,"sheets":["Sheet1","Sheet2"],"not_rendered":{"charts":0,"images":0,"macros":1,"external_links":0,"defined_names":0,"comments":0,"pivot_tables":0},"unopened":[],"bounds":{"document_bytes":16777216,"sheet_cells":100000,"rows_first":2000,"rows_last":500,"rows_between":2000,"halvings":0,"cell_chars":16384,"cell_head_chars":4096},"cells_cut":0,"cells_raw":0,"read":"whole","date_system":"1900"}

{"sheet":"Sheet1","index":0,"n_rows":14,"n_cols":6,"rows_kept":14,"cut":false,"hidden":false,"merged":[]}
["Hiperlink","File Name"]
["C:\\Temp\\forum\\language\\en\\app.php",{"$f":"TRIM(RIGHT(SUBSTITUTE(A2,\"\\\",REPT(\" \",99)),99))","v":"app.php"}]
["C:\\Temp\\forum\\language\\en\\captcha_qa.php","captcha_qa.php"]
["C:\\Temp\\forum\\language\\en\\captcha_recaptcha.php","captcha_recaptcha.php"]
["C:\\Temp\\forum\\language\\en\\cli.php","cli.php"]
["C:\\Temp\\forum\\language\\en\\common.php","common.php"]
["C:\\Temp\\forum\\language\\en\\groups.php","groups.php"]
["C:\\Temp\\4017A.jpg",{"$f":"TRIM(RIGHT(SUBSTITUTE(A8,\"\\\",REPT(\" \",99)),99))","v":"4017A.jpg"}]
["C:\\Temp\\4101-04.jpg","4101-04.jpg"]
["C:\\Temp\\UScollectionStampWithImages.pdf","UScollectionStampWithImages.pdf"]
["C:\\Temp\\UScollectionStampWithImages.xlsm","UScollectionStampWithImages.xlsm"]
["C:\\Temp\\us-old-postage-stamp1.jpg","us-old-postage-stamp1.jpg"]
["C:\\Temp\\UX56.jpg","UX56.jpg"]
["C:\\Temp\\UXC9.jpg","UXC9.jpg",null,null,null,{"$f":"TRIM(RIGHT(SUBSTITUTE(E14,\"\\\",REPT(\" \",99)),99))","v":""}]

{"sheet":"Sheet2","index":1,"n_rows":16,"n_cols":5,"rows_kept":16,"cut":false,"hidden":false,"merged":[]}
[]
[null,null,null,null,"http://www.ic-ims.com/excel-2013/razno/umetanje-slike-iz-mape-u-celiju-i-smanjenje-dimenzija.html"]
[]
[null,null,null,null,"http://ic.ims.hr/faq/office2007/word2007/merge-images.html"]
[]
[null,null,null,null,"http://ic.ims.hr/office/excel2003/excel26.html"]
[]
[]
["Hiperlink","File Name"]
["C:\\Temp\\3990.jpg",{"$f":"TRIM(RIGHT(SUBSTITUTE(A10,\"\\\",REPT(\" \",99)),99))","v":"3990.jpg"}]
["C:\\Temp\\4017A.jpg","4017A.jpg"]
["C:\\Temp\\UScollectionStampWithImages.xlsm","UScollectionStampWithImages.xlsm"]
["C:\\Temp\\UScollectionStampWithImages.pdf","UScollectionStampWithImages.pdf"]
["C:\\Temp\\us-old-postage-stamp1.jpg","us-old-postage-stamp1.jpg"]
["C:\\Temp\\UX56.jpg","UX56.jpg"]
["C:\\Temp\\UXC9.jpg","UXC9.jpg"]